fUSD/lending_fUSD_20250208
["ID","MTS","AMOUNT","RATE_DAILY","PERIOD"]
[352257747,1739019083038,-500.0,0.00010942,2]
[352257748,1739019083047,-500.0,0.00010942,2]
[352257749,1739019083057,-824.16,0.00010942,2]
[352257750,1739019083067,-500.0,0.00010942,2]
[352257751,1739019083077,-500.0,0.00010942,2]
[352257752,1739019083086,-597.19,0.00010942,2]
[352257753,1739019083096,-759.56,0.00010942,2]
[352257754,1739019083106,-692.04,0.00010942,2]
[352257755,1739019083116,-1415.76,0.00010942,2]
[352257756,1739019083126,-500.0,0.00010942,2]
[352257757,1739019083135,-610.47,0.00010942,2]
[352257758,1739019083145,-500.0,0.00010942,2]
[352257759,1739019083155,-1795.35,0.00010942,2]
[352257760,1739019083165,-500.0,0.00010942,2]
[352257761,1739019083343,-500.0,0.00010942,2]
[352257762,1739019083352,-419.92473953,0.00010942,2]
[352257763,1739019083362,-500.0,0.00010942,2]
[352257764,1739019083371,-722.92,0.00010942,2]
[352257765,1739019083382,-500.0,0.00010942,2]
[352257766,1739019083391,-500.0,0.00010942,2]
[352257767,1739019083402,-500.0,0.00010942,2]
[352257768,1739019083413,-696.7,0.00010942,2]
[352257769,1739019083422,-500.0,0.00010942,2]
[352257770,1739019083433,-1014.75,0.00010942,2]
[352257771,1739019083442,-1491.65,0.00010942,2]
[352257772,1739019083452,-500.0,0.00010942,2]
[352257773,1739019083461,-659.72,0.00010942,2]
[352257774,1739019083470,-635.45,0.00010942,2]
[352257775,1739019083483,-1440.95,0.00010942,2]
[352257776,1739019083492,-500.0,0.00010942,2]
[352257777,1739019083501,-570.01,0.00010942,2]
[352257778,1739019083511,-561.8,0.00010942,2]
[352257779,1739019083521,-10803.61,0.00010942,2]
[352257780,1739019083532,-1177.71,0.00010942,2]
[352257781,1739019083542,-1665.48,0.00010942,2]
[352257782,1739019083552,-500.0,0.00010942,2]
[352257783,1739019083563,-500.0,0.00010942,2]
[352257784,1739019083573,-1542.87,0.00010942,2]
[352257785,1739019083583,-500.0,0.00010942,2]
[352257786,1739019083595,-500.0,0.00010942,2]
[352257787,1739019083606,-500.0,0.00010942,2]
[352257788,1739019083616,-2013.31,0.00010942,2]
[352257789,1739019083627,-1526.43,0.00010942,2]
[352257790,1739019083636,-500.0,0.00010942,2]
[352257791,1739019083646,-1414.63,0.00010942,2]
[352257792,1739019083658,-500.0,0.00010942,2]
[352257793,1739019083667,-500.0,0.00010942,2]
[352257794,1739019083676,-506.75,0.00010942,2]
[352257795,1739019083687,-500.0,0.00010942,2]
[352257796,1739019083697,-500.0,0.00010942,2]
[352257797,1739019083707,-500.0,0.00010942,2]
[352257798,1739019083718,-2271.3,0.00010942,2]
[352257799,1739019083729,-1267.0,0.00010942,2]
[352257800,1739019083740,-1254.27,0.00010942,2]
[352257801,1739019083751,-500.0,0.00010942,2]
[352257802,1739019083760,-764.29,0.00010942,2]
[352257803,1739019083769,-632.62,0.00010942,2]
[352257804,1739019083779,-1910.15,0.00010942,2]
[352257805,1739019083788,-1006.72,0.00010942,2]
[352257806,1739019083798,-2639.64,0.00010942,2]
[352257807,1739019083807,-500.0,0.00010942,2]
[352257808,1739019083818,-556.57,0.00010942,2]
[352257809,1739019083828,-2409.54,0.00010942,2]
[352257810,1739019083838,-500.0,0.00010942,2]
[352257811,1739019083848,-521.61,0.00010942,2]
[352257812,1739019083858,-1454.28,0.00010942,2]
[352257813,1739019083868,-500.0,0.00010942,2]
[352257814,1739019083877,-500.0,0.00010942,2]
[352257815,1739019083887,-1765.01,0.00010942,2]
[352257816,1739019083896,-1985.75,0.00010942,2]
[352257817,1739019083906,-500.0,0.00010942,2]
[352257818,1739019083916,-1199.55,0.00010942,2]
[352257819,1739019083925,-871.18,0.00010942,2]
[352257820,1739019083934,-2599.62,0.00010942,2]
[352257821,1739019083944,-1854.84,0.00010942,2]
[352257822,1739019083954,-500.0,0.00010942,2]
[352257823,1739019083963,-893.79,0.00010942,2]
[352257824,1739019083972,-500.0,0.00010942,2]
[352257825,1739019083982,-500.0,0.00010942,2]
[352257826,1739019083992,-1978.01,0.00010942,2]
[352257827,1739019084002,-508.31770099,0.00010942,2]
[352257828,1739019084011,-4080.58,0.00010942,2]
[352257829,1739019084020,-1719.91,0.00010942,2]
[352257830,1739019084030,-4167.24,0.00010942,2]
[352257831,1739019084039,-500.0,0.00010942,2]
[352257832,1739019084049,-12253.86,0.00010942,2]
[352257833,1739019084058,-1340.27,0.00010942,2]
[352257834,1739019084069,-1039.39,0.00010942,2]
[352257835,1739019084079,-500.0,0.00010942,2]
[352257836,1739019084088,-500.0,0.00010942,2]
[352257837,1739019084097,-1640.04,0.00010942,2]
[352257838,1739019084106,-500.0,0.00010942,2]
[352257839,1739019084115,-1083.05,0.00010942,2]
[352257840,1739019084125,-500.0,0.00010942,2]
[352257841,1739019084134,-1904.32,0.00010942,2]
[352257842,1739019084144,-802.41,0.00010942,2]
[352257843,1739019084155,-500.0,0.00010942,2]
[352257844,1739019084164,-500.0,0.00010942,2]
[352257845,1739019084173,-500.0,0.00010942,2]
[352257846,1739019084183,-4946.08,0.00010942,2]
[352257847,1739019084192,-1721.15,0.00010942,2]
[352257848,1739019084201,-1252.24,0.00010942,2]
[352257849,1739019084210,-500.0,0.00010942,2]
[352257850,1739019084220,-1389.14,0.00010942,2]
[352257851,1739019084229,-1691.94,0.00010942,2]
[352257852,1739019084239,-1132.83,0.00010942,2]
[352257853,1739019084248,-1046.15,0.00010942,2]
[352257854,1739019084259,-2627.54,0.00010942,2]
[352257855,1739019084268,-519.94,0.00010942,2]
[352257856,1739019084279,-512.52,0.00010942,2]
[352257857,1739019084289,-3945.23,0.00010942,2]
[352257858,1739019084300,-500.0,0.00010942,2]
[352257859,1739019084309,-1727.91,0.00010942,2]
[352257860,1739019084320,-500.0,0.00010942,2]
[352257861,1739019084330,-500.0,0.00010942,2]
[352257862,1739019084339,-500.0,0.00010942,2]
[352257863,1739019084349,-3984.19,0.00010942,2]
[352257864,1739019084359,-500.0,0.00010942,2]
[352257865,1739019084368,-949.44,0.00010942,2]
[352257866,1739019084377,-500.0,0.00010942,2]
[352257867,1739019084386,-3057.43,0.00010942,2]
[352257868,1739019084395,-714.81,0.00010942,2]
[352257869,1739019084408,-4918.46,0.00010942,2]
[352257870,1739019084418,-618.76,0.00010942,2]
[352257871,1739019084429,-1900.09,0.00010942,2]
[352257872,1739019084438,-500.0,0.00010942,2]
[352257873,1739019084449,-2718.67,0.00010942,2]
[352257874,1739019084460,-1307.78,0.00010942,2]
[352257875,1739019084469,-500.0,0.00010942,2]
[352257876,1739019084480,-500.0,0.00010942,2]
[352257877,1739019084490,-721.31,0.00010942,2]
[352257878,1739019084500,-500.0,0.00010942,2]
[352257879,1739019084510,-500.0,0.00010942,2]
[352257880,1739019084519,-500.0,0.00010942,2]
[352257881,1739019084529,-500.0,0.00010942,2]
[352257882,1739019084541,-570.33,0.00010942,2]
[352257883,1739019084552,-2870.05,0.00010942,2]
[352257884,1739019084562,-860.75,0.00010942,2]
[352257885,1739019084571,-505.3407101,0.00010942,2]
[352257886,1739019084580,-3205.41,0.00010942,2]
[352257887,1739019084590,-500.0,0.00010942,2]
[352257888,1739019084599,-3098.11,0.00010942,2]
[352257889,1739019084608,-500.0,0.00010942,2]
[352257890,1739019084618,-500.0,0.00010942,2]
[352257891,1739019084627,-1823.36,0.00010942,2]
[352257892,1739019084635,-600.49,0.00010942,2]
[352257893,1739019084645,-1639.56,0.00010942,2]
[352257894,1739019084655,-2230.91,0.00010942,2]
[352257895,1739019084664,-5256.2,0.00010942,2]
[352257896,1739019084674,-1950.99,0.00010942,2]
[352257897,1739019084683,-500.0,0.00010942,2]
[352257898,1739019084692,-755.89,0.00010942,2]
[352257899,1739019084702,-1465.86,0.00010942,2]
[352257900,1739019084712,-730.02,0.00010942,2]
[352257901,1739019084722,-500.0,0.00010942,2]
[352257902,1739019084731,-500.0,0.00010942,2]
[352257903,1739019084740,-597.26,0.00010942,2]
[352257904,1739019084751,-3908.9,0.00010942,2]
[352257905,1739019084760,-500.0,0.00010942,2]
[352257906,1739019084769,-1496.15,0.00010942,2]
[352257907,1739019084779,-500.0,0.00010942,2]
[352257908,1739019084788,-3150.83,0.00010942,2]
[352257909,1739019084797,-500.0,0.00010942,2]
[352257910,1739019084808,-3721.01,0.00010942,2]
[352257911,1739019084818,-500.0,0.00010942,2]
[352257912,1739019084827,-2167.97,0.00010942,2]
[352257913,1739019084837,-1347.86,0.00010942,2]
[352257914,1739019084847,-1543.2,0.00010942,2]
[352257915,1739019084856,-500.0,0.00010942,2]
[352257916,1739019084866,-3577.47,0.00010942,2]
[352257917,1739019084876,-549.39,0.00010943,2]
[352257918,1739019084885,-500.0,0.00010943,2]
[352257919,1739019084895,-500.0,0.00010943,2]
[352257920,1739019084904,-500.0,0.00010943,2]
[352257921,1739019084914,-500.0,0.00010943,2]
[352257922,1739019084923,-602.87,0.00010943,2]
[352257923,1739019084933,-1367.43,0.00010943,2]
[352257924,1739019084944,-567.33,0.00010943,2]
[352257925,1739019084953,-742.72,0.00010943,2]
[352257926,1739019084963,-1443.9,0.00010943,2]
[352257927,1739019084972,-500.0,0.00010943,2]
[352257928,1739019084981,-1546.44,0.00010943,2]
[352257929,1739019084991,-2113.11,0.00010943,2]
[352257930,1739019085000,-1746.31,0.00010943,2]
[352257931,1739019085010,-825.67,0.00010943,2]
[352257932,1739019085019,-706.55,0.00010943,2]
[352257933,1739019085028,-754.09,0.00010943,2]
[352257934,1739019085037,-500.0,0.00010943,2]
[352257935,1739019085047,-1816.29,0.00010943,2]
[352257936,1739019085056,-792.06,0.00010943,2]
[352257937,1739019085065,-1800.25,0.00010943,2]
[352257938,1739019085075,-500.0,0.00010943,2]
[352257939,1739019085084,-1741.18,0.00010943,2]
[352257940,1739019085094,-708.43,0.00010943,2]
[352257941,1739019085103,-820.36,0.00010943,2]
[352257942,1739019085114,-500.0,0.00010943,2]
[352257943,1739019085124,-879.9,0.00010943,2]
[352257944,1739019085133,-566.23,0.00010943,2]
[352257945,1739019085142,-500.0,0.00010943,2]
[352257946,1739019085152,-668.43,0.00010943,2]
[352257947,1739019085161,-697.71,0.00010943,2]
[352257948,1739019085170,-500.0,0.00010943,2]
[352257949,1739019085180,-922.83,0.00010943,2]
[352257950,1739019085189,-1031.15,0.00010943,2]
[352257951,1739019085199,-500.0,0.00010943,2]
[352257952,1739019085208,-22220.11092029,0.00010958,2]
[352257953,1739019085217,-151.0,0.00010958,2]
[352257954,1739019085227,-200.0,0.00010959,2]
[352257955,1739019085236,-1659.11544568,0.0001097,2]
[352257956,1739019085245,-1000.0,0.0001097,2]
[352257957,1739019085254,-1000.0,0.0001097,2]
[352257958,1739019085264,-782.99781256,0.0001097,2]
[352257959,1739019085273,-30397.09837371,0.0001098,2]
[352257960,1739019085282,-1497.4005925,0.00010992,2]
[352257961,1739019085292,-1407.6732135,0.00010992,2]
[352257962,1739019085302,-1317.9458344,0.00010992,2]
[352257963,1739019085311,-1228.2184554,0.00010992,2]
[352257964,1739019085323,-2147.9096014,0.00010992,2]
[352257965,1739019085332,-2019.2023604,0.00010992,2]
[352257966,1739019085341,-1890.4951193,0.00010992,2]
[352257967,1739019085350,-1761.7878783,0.00010992,2]
[352257968,1739019085360,-3085.26765716,0.00010999,2]
[352257969,1739019085369,-2501.4170147,0.00010999,2]
[352257970,1739019085379,-500.0,0.00010999,2]
[352257971,1739019085388,-500.0,0.00010999,2]
[352257972,1739019085398,-153.92036852,0.00010999,2]
[352257973,1739019085411,-2912.82467326,0.00011,2]
[352257974,1739019085420,-11589937.10944327,0.00011,2]
[352257975,1739019085835,-501.18637654,0.00010393,2]
[352257976,1739019085875,-3897.06,0.00010119,2]
[352257977,1739019085884,-500.0,0.00010256,2]
[352257978,1739019085894,-19.94362346,0.00010393,2]
[352257979,1739019085903,-14230.57808887,0.00011,2]
[352257980,1739019085914,-1490.24,0.00011,2]
[352257981,1739019085955,-835.83,0.00010394,2]
[352257982,1739019085964,-506.46704134,0.00010804,2]
[352257983,1739019085974,-8559.20295866,0.00011,2]
[352257984,1739019086694,-500.0,0.00010119,2]
[352257985,1739019086703,-3897.06,0.00010256,2]
[352257986,1739019086712,-500.0,0.00010256,2]
[352257987,1739019086721,-500.0,0.00010393,2]
[352257988,1739019086730,-3897.06,0.00010393,2]
[352257989,1739019086740,-500.0,0.00010393,2]
[352257990,1739019086749,-505.42556839,0.00010394,2]
[352257991,1739019086759,-521.13,0.0001053,2]
[352257992,1739019086769,-500.0,0.0001053,2]
[352257993,1739019086778,-3897.06,0.0001053,2]
[352257994,1739019086787,-500.0,0.0001053,2]
[352257995,1739019086796,-835.83,0.00010531,2]
[352257996,1739019086806,-617.12254654,0.00010597,2]
[352257997,1739019086816,-521.13,0.00010667,2]
[352257998,1739019086827,-500.0,0.00010667,2]
[352257999,1739019086836,-3897.06,0.00010667,2]
[352258000,1739019086846,-835.83,0.00010668,2]
[352258001,1739019086855,-521.13,0.00010804,2]
[352258002,1739019086864,-500.0,0.00010804,2]
[352258003,1739019086874,-3897.06,0.00010804,2]
[352258004,1739019086883,-162.09347594,0.000109,2]
[352258005,1739019086893,-521.13,0.00010941,2]
[352258006,1739019086902,-500.0,0.00010941,2]
[352258007,1739019086912,-3897.06,0.00010941,2]
[352258008,1739019086921,-83337.05664891,0.00011,2]
[352258009,1739019086950,-423.08817585,0.00010119,2]
[352258010,1739019086968,-76.91182415,0.00010119,2]
[352258011,1739019086977,-712.90386054,0.00011,2]
[352258012,1739019087010,-500.0,0.00010118,2]
[352258013,1739019087019,-2340205.80790765,0.00011,2]
[352258014,1739019088678,-238.57,9.411e-05,2]
[352258015,1739019088687,-500.0,0.00010118,2]
[352258016,1739019088696,-500.0,0.00010118,2]
[352258017,1739019088705,-500.0,0.00010119,2]
[352258018,1739019088715,-500.0,0.00010119,2]
[352258019,1739019088724,-500.0,0.00010119,2]
[352258020,1739019088733,-500.0,0.0001012,2]
[352258021,1739019088744,-155.91154811,0.0001012,2]
[352258022,1739019088753,-500.0,0.0001012,2]
[352258023,1739019088763,-500.0,0.0001012,2]
[352258024,1739019088772,-501.86133191,0.00010255,2]
[352258025,1739019088781,-500.0,0.00010255,2]
[352258026,1739019088791,-500.0,0.00010255,2]
[352258027,1739019088800,-644.26380603,0.00010256,2]
[352258028,1739019088809,-500.0,0.00010256,2]
[352258029,1739019088818,-500.0,0.00010256,2]
[352258030,1739019088828,-500.0,0.00010256,2]
[352258031,1739019088838,-500.0,0.00010257,2]
[352258032,1739019088847,-500.0,0.00010257,2]
[352258033,1739019088856,-500.0,0.00010257,2]
[352258034,1739019088865,-500.0,0.00010392,2]
[352258035,1739019088875,-500.0,0.00010392,2]
[352258036,1739019088884,-500.0,0.00010393,2]
[352258037,1739019088894,-500.0,0.00010393,2]
[352258038,1739019088903,-500.0,0.00010393,2]
[352258039,1739019088912,-500.0,0.00010394,2]
[352258040,1739019088922,-500.0,0.00010394,2]
[352258041,1739019088931,-500.0,0.00010394,2]
[352258042,1739019088941,-500.0,0.00010529,2]
[352258043,1739019088951,-500.0,0.00010529,2]
[352258044,1739019088960,-500.0,0.0001053,2]
[352258045,1739019088970,-500.0,0.0001053,2]
[352258046,1739019088979,-500.0,0.0001053,2]
[352258047,1739019088989,-500.0,0.00010531,2]
[352258048,1739019088998,-500.0,0.00010531,2]
[352258049,1739019089007,-500.0,0.00010531,2]
[352258050,1739019089017,-500.0,0.00010666,2]
[352258051,1739019089026,-500.0,0.00010666,2]
[352258052,1739019089036,-500.0,0.00010667,2]
[352258053,1739019089045,-500.0,0.00010667,2]
[352258054,1739019089055,-500.0,0.00010667,2]
[352258055,1739019089064,-500.0,0.00010667,2]
[352258056,1739019089075,-500.0,0.00010668,2]
[352258057,1739019089084,-500.0,0.00010668,2]
[352258058,1739019089093,-500.0,0.00010668,2]
[352258059,1739019089103,-500.0,0.00010803,2]
[352258060,1739019089112,-500.0,0.00010803,2]
[352258061,1739019089122,-500.0,0.00010804,2]
[352258062,1739019089131,-291.06445602,0.00010804,2]
[352258063,1739019089140,-500.0,0.00010804,2]
[352258064,1739019089150,-835.83,0.00010805,2]
[352258065,1739019089162,-500.0,0.00010805,2]
[352258066,1739019089171,-500.0,0.00010805,2]
[352258067,1739019089181,-500.0,0.00010805,2]
[352258068,1739019089191,-617.12254654,0.000109,2]
[352258069,1739019089201,-500.0,0.0001094,2]
[352258070,1739019089211,-500.0,0.0001094,2]
[352258071,1739019089220,-500.0,0.00010941,2]
[352258072,1739019089230,-500.0,0.00010941,2]
[352258073,1739019089239,-500.0,0.00010942,2]
[352258074,1739019089248,-835.83,0.00010942,2]
[352258075,1739019089258,-34746.54631139,0.00011,2]
[352258076,1739019089310,-495.193653,0.00010804,2]
[352258080,1739020148308,446.28754964,0.0002,120]
[352258081,1739020215987,-942.22,8.219e-05,2]
[352258082,1739020216008,-500.0,8.528e-05,2]
[352258083,1739020216029,-704.77,8.831e-05,2]
[352258084,1739020216049,-150.0,8.835e-05,2]
[352258085,1739020216070,-566.57187075,8.835e-05,2]
[352258086,1739020216092,-300.0,8.835e-05,2]
[352258087,1739020216113,-566.57187073,8.836e-05,2]
[352258088,1739020216134,-6269.86625852,8.836e-05,2]
[352258089,1739020216988,-10000.0,8.836e-05,2]
[352258090,1739020217644,-10000.0,8.836e-05,2]
[352258091,1739020218261,-1635.32914148,8.836e-05,2]
[352258092,1739020218284,-6972.3257,8.836e-05,2]
[352258093,1739020218306,-1392.34515852,8.836e-05,2]
[352258094,1739020218633,-10000.0,8.836e-05,2]
[352258095,1739020219113,-10000.0,8.836e-05,2]
[352258096,1739020224004,-980.55124148,8.836e-05,2]
[352258097,1739020224025,-566.57187073,8.836e-05,2]
[352258098,1739020224047,-164.83035,8.836e-05,2]
[352258099,1739020224070,-2500.0,8.851e-05,2]
[352258100,1739020231883,-250.0,8.922e-05,2]
[352258101,1739020231894,-1000.0,8.925e-05,2]
[352258102,1739020231903,-976.9,8.974e-05,2]
[352258103,1739020231915,-28.86,8.974e-05,2]
[352258104,1739020231924,-500.0,9.041e-05,2]
[352258105,1739020231933,-917.47781593,9.049e-05,2]
[352258106,1739020231945,-87.19218407,9.049e-05,2]
[352258107,1739020231955,-271.58,9.077e-05,2]
[352258108,1739020231965,-164.07,9.126e-05,2]
[352258109,1739020231978,-439.61,9.341e-05,2]
[352258110,1739020231988,-774.96,9.341e-05,2]
[352258111,1739020231998,-584.24,9.418e-05,2]
[352258112,1739020232007,-83.44781593,9.449e-05,2]
[352258113,1739020232027,-160.78218407,9.449e-05,2]
[352258114,1739020232036,-172.38,9.47e-05,2]
[352258115,1739020232046,-51.31297927,9.479e-05,2]
[352258116,1739020232057,-138.68702073,9.479e-05,2]
[352258117,1739020232067,-500.0,9.562e-05,2]
[352258118,1739020232076,-255.0,9.718e-05,2]
[352258119,1739020232085,-420.0,9.718e-05,2]
[352258120,1739020232095,-150.0,9.789e-05,2]
[352258121,1739020232104,-150.0,9.789e-05,2]
[352258122,1739020232113,-150.0,9.789e-05,2]
[352258123,1739020232124,-150.0,9.789e-05,2]
[352258124,1739020232139,-1000.0,0.00010041,2]
[352258125,1739020232148,-262.61,0.00010058,2]
[352258126,1739020232157,-1171.34,0.00010117,2]
[352258127,1739020232167,-729.12,0.00010117,2]
[352258128,1739020232176,-631.7,0.00010117,2]
[352258129,1739020232185,-2815.16,0.00010117,2]
[352258130,1739020232194,-155.960285,0.00010117,2]
[352258131,1739020232204,-500.0,0.00010117,2]
[352258132,1739020232213,-1087.56,0.00010117,2]
[352258133,1739020232222,-945.46,0.00010117,2]
[352258134,1739020232231,-2118.221808,0.00010117,2]
[352258135,1739020232241,-1230.12,0.00010117,2]
[352258136,1739020232250,-722.84,0.00010117,2]
[352258137,1739020232259,-347.09943866,0.00010117,2]
[352258139,1739020232279,-322.51260265,0.00010117,2]
[352258143,1739020232311,-1370.68264793,0.00010117,2]
[352258147,1739020232336,-650.75124806,0.00010117,2]
[352258149,1739020232347,-334.2540627,0.00010117,2]
[352258151,1739020232356,-184.6859373,0.00010117,2]
[352258154,1739020232367,-375.839991,0.00010117,2]
[352258156,1739020232377,-271.5,0.00010117,2]
[352258158,1739020232389,-1643.3063007,0.00010117,2]
[352258160,1739020232398,-751.39,0.00010117,2]
[352258163,1739020232414,-1508.12,0.00010117,2]
[352258164,1739020232424,-154.492046,0.00010117,2]
[352258166,1739020232433,-1917.11,0.00010117,2]
[352258168,1739020232442,-500.0,0.00010117,2]
[352258170,1739020232451,-500.0,0.00010117,2]
[352258172,1739020232461,-501.54,0.00010117,2]
[352258174,1739020232470,-936.14,0.00010117,2]
[352258176,1739020232479,-1194.46,0.00010117,2]
[352258178,1739020232488,-1511.63,0.00010117,2]
[352258180,1739020232497,-1899.22,0.00010117,2]
[352258183,1739020232508,-1669.03,0.00010117,2]
[352258185,1739020232519,-1125.52,0.00010117,2]
[352258187,1739020232529,-1085.17,0.00010117,2]
[352258189,1739020232539,-2043.74,0.00010117,2]
[352258191,1739020232549,-2568.21,0.00010117,2]
[352258193,1739020232559,-874.81,0.00010117,2]
[352258195,1739020232567,-500.0,0.00010117,2]
[352258197,1739020232576,-2104.43,0.00010117,2]
[352258199,1739020232585,-2510.95,0.00010117,2]
[352258201,1739020232595,-1305.21,0.00010117,2]
[352258203,1739020232604,-1780.42,0.00010117,2]
[352258205,1739020232613,-3165.45,0.00010117,2]
[352258207,1739020232622,-1157.2,0.00010117,2]
[352258209,1739020232631,-1569.05,0.00010117,2]
[352258210,1739020232640,-4407.25,0.00010117,2]
[352258213,1739020232650,-1110.65,0.00010117,2]
[352258215,1739020232659,-6571.21,0.00010117,2]
[352258216,1739020232669,-500.0,0.00010117,2]
[352258218,1739020232678,-1766.58,0.00010117,2]
[352258221,1739020232687,-2394.92,0.00010117,2]
[352258223,1739020232696,-720.87,0.00010117,2]
[352258224,1739020232705,-500.0,0.00010117,2]
[352258226,1739020232715,-2964.8,0.00010117,2]
[352258228,1739020232725,-1365.76,0.00010117,2]
[352258230,1739020232734,-1775.62,0.00010117,2]
[352258232,1739020232743,-1518.17,0.00010117,2]
[352258234,1739020232752,-791.94,0.00010117,2]
[352258236,1739020232762,-2925.01,0.00010117,2]
[352258239,1739020232771,-1969.88,0.00010117,2]
[352258240,1739020232781,-915.4,0.00010117,2]
[352258241,1739020232791,-2744.07,0.00010117,2]
[352258243,1739020232801,-1251.68,0.00010117,2]
[352258245,1739020232816,-500.22409697,0.00010117,2]
[352258247,1739020232825,-2268.97,0.00010117,2]
[352258249,1739020232834,-500.0,0.00010117,2]
[352258251,1739020232843,-590.86730565,0.00010117,2]
[352258253,1739020232857,-498.50269435,0.00010117,2]
[352258255,1739020232867,-500.0,0.00010117,2]
[352258257,1739020232876,-656.39,0.00010117,2]
[352258259,1739020232887,-500.0,0.00010117,2]
[352258261,1739020232896,-614.82,0.00010117,2]
[352258263,1739020232906,-500.0,0.00010117,2]
[352258265,1739020232915,-500.0,0.00010117,2]
[352258267,1739020232924,-3020.1,0.00010117,2]
[352258269,1739020232933,-1962.59,0.00010117,2]
[352258271,1739020232942,-1406.72,0.00010117,2]
[352258273,1739020232951,-231.94239262,0.00010117,2]
[352258275,1739020232961,-332.74760718,0.00010117,2]
[352258277,1739020232971,-500.0,0.00010118,2]
[352258279,1739020232980,-500.0,0.00010118,2]
[352258281,1739020232989,-500.0,0.00010118,2]
[352258283,1739020232998,-500.0,0.00010118,2]
[352258285,1739020233007,-500.0,0.00010118,2]
[352258287,1739020233016,-804.9,0.00010118,2]
[352258289,1739020233026,-500.0,0.00010118,2]
[352258291,1739020233035,-500.0,0.00010118,2]
[352258293,1739020233044,-500.0,0.00010118,2]
[352258295,1739020233054,-500.0,0.00010118,2]
[352258297,1739020233064,-500.0,0.00010118,2]
[352258298,1739020233074,-500.0,0.00010118,2]
[352258300,1739020233084,-500.0,0.00010118,2]
[352258302,1739020233095,-1179.65,0.00010118,2]
[352258305,1739020233105,-521.98112458,0.00010118,2]
[352258307,1739020233115,-500.0,0.00010118,2]
[352258309,1739020233125,-500.0,0.00010118,2]
[352258311,1739020233135,-500.0,0.00010118,2]
[352258313,1739020233145,-500.46261786,0.00010118,2]
[352258314,1739020233155,-500.0,0.00010118,2]
[352258316,1739020233165,-509.01854039,0.00010118,2]
[352258318,1739020233174,-500.0,0.00010118,2]
[352258320,1739020233184,-817.53,0.00010118,2]
[352258322,1739020233193,-500.0,0.00010118,2]
[352258324,1739020233204,-500.0,0.00010118,2]
[352258326,1739020233214,-500.0,0.00010118,2]
[352258328,1739020233224,-500.0,0.00010118,2]
[352258330,1739020233235,-501.13568394,0.00010118,2]
[352258332,1739020233245,-500.0,0.00010118,2]
[352258335,1739020233254,-643.84920409,0.00010118,2]
[352258337,1739020233264,-500.0,0.00010118,2]
[352258339,1739020233274,-500.0,0.00010118,2]
[352258341,1739020233284,-500.0,0.00010118,2]
[352258342,1739020233294,-500.0,0.00010118,2]
[352258345,1739020233304,-608.65,0.00010118,2]
[352258347,1739020233314,-500.0,0.00010118,2]
[352258349,1739020233324,-500.80698544,0.00010118,2]
[352258351,1739020233333,-500.0,0.00010118,2]
[352258352,1739020233343,-286.13605615,0.00010118,2]
[352258354,1739020233352,-500.0,0.00010118,2]
[352258357,1739020233361,-500.0,0.00010118,2]
[352258358,1739020233371,-500.0,0.00010118,2]
[352258361,1739020233381,-500.0,0.00010118,2]
[352258363,1739020233390,-500.0,0.00010118,2]
[352258365,1739020233399,-726.57,0.00010118,2]